[Event "XIX Sants Open 2017"]
[Site "Cotxeres de Sants"]
[Date "2017.08.18"]
[Round "1"]
[White "Mut Company, Guillem"]
[Black "Rodriguez Guillen, Carlos"]
[Result "0-1"]
[ECO "A45"]
[WhiteElo "1948"]
[BlackElo "1752"]
[Annotator "NA"]
[PlyCount "33"]
[EventDate "2017.??.??"]
[EventType "swiss"]
[EventCountry "ESP"]
[SourceTitle "playchess.com"]
[Source "ChessBase"]
[SourceQuality "1"]
[TimeControl "40/5400+30:1800+30"]

1. d4 {[%emt 0:00:00]} Nf6 {[%emt 0:00:04]} 2. Bg5 {[%emt 0:00:00]} c5 {[%emt 0:02:54]} 3. d5 {[%emt 0:00:07]} Qb6 {[%emt 0:01:04]} 4. Nc3 {[%emt 0:01:00]} Na6 {[%emt 0:03:29]} 5. e4 {[%emt 0:14:28]} Qxb2 {[%emt 0:05:35]} 6. Bd2 {[%emt 0:08:45]} Nb4 {[%emt 0:08:41]} 7. Bd3 {[%emt 0:03:41]} c4 {[%emt 0:12:11]} 8. Rb1 {[%emt 0:03:31]} Nxd3+ {[%emt 0:00:26]} 9. cxd3 {[%emt 0:02:07]} Qa3 {[%emt 0:00:58]} 10. e5 {[%emt 0:06:35]} Nxd5 {[%emt 0:05:44]} 11. Nxd5 {[%emt 0:01:21]} Qxd3 {[%emt 0:03:41]} 12. Nc7+ {[%emt 0:02:54]} Kd8 {[%emt 0:00:05]} 13. Nxa8 {[%emt 0:05:35]} Qe4+ {[%emt 0:05:19]} 14. Ne2 {[%emt 0:08:12]} Qxg2 {[%emt 0:00:39]} 15. Rg1 {[%emt 0:01:07]} Qxh2 {[%emt 0:01:30]} 16. Bf4 {[%emt 0:03:44]} Qh4 {[%emt 0:01:23]} 17. Qd4 {[%emt 0:04:44]} 0-1

[Event "XIX Sants Open 2017"]
[Site "Cotxeres de Sants"]
[Date "2017.08.18"]
[Round "1"]
[White "Palomeras Ustrell, Eduard"]
[Black "Petit Montes, Marc"]
[Result "0-1"]
[ECO "D02"]
[WhiteElo "1748"]
[BlackElo "1948"]
[Annotator "NA RC"]
[PlyCount "154"]
[EventDate "2017.??.??"]
[EventType "swiss"]
[EventCountry "ESP"]
[SourceTitle "playchess.com"]
[Source "ChessBase"]
[SourceQuality "1"]
[TimeControl "40/5400+30:1800+30"]

1. d4 {[%emt 0:00:00]} d5 {[%emt 0:10:53]} 2. Nf3 {[%emt 0:00:00]} Nf6 {[%emt 0:00:18]} 3. Bf4 {[%emt 0:00:39]} c5 {[%emt 0:02:49]} 4. e3 {[%emt 0:01:43]} Nc6 {[%emt 0:04:10]} 5. c3 {[%emt 0:01:01] LiveBook: 826 Games} cxd4 {[%emt 0:03:28]} 6. exd4 {[%emt 0:01:08]} e6 {[%emt 0:05:22]} 7. Nbd2 {[%emt 0:01:59]} Bd6 {[%emt 0:00:38]} 8. Ne5 {[%emt 0:02:10] D02: 1 d4 d5 2 Nf3 sidelines, including 2...Nf6 3 g3 and 2...Nf6 3 Bf4} (8. Bg3 O-O 9. Bd3 a6 10. O-O Bxg3 11. hxg3 b5 12. b4 Qc7 13. Re1 Re8 14. a4 bxa4 15. Qxa4 Bd7 16. b5 {½-½ (94) Kamsky,G (2732)-Wang,Y (2697) Beijing 2011}) 8... Qc7 {[%emt 0:00:52]} 9. Bb5 {[%emt 0:03:52]} Nd7 {[%emt 0:02:15]} 10. Ndf3 {[%emt 0:07:26]} f6 {[%emt 0:10:43]} 11. Nxd7 {[%emt 0:11:43]} Bxd7 $146 {[%emt 0:00:58]} ({Find the theoretical novelty and annotate with similar games:} 11... Bxf4 12. Nc5 a6 13. Ba4 {1-0 (13) Garmatz,W (1441)-Blas,I (1873) LSS email 2007}) 12. Bxd6 {[%emt 0:03:48]} Qxd6 {[%emt 0:00:12]} 13. O-O {[%emt 0:00:56]} O-O {[%emt 0:01:01]} 14. Qc2 {[%emt 0:18:36]} e5 {[%emt 0:08:13]} 15. c4 {[%emt 0:13:54]} e4 {[%emt 0:13:53]} 16. Bxc6 {[%emt 0:03:30]} bxc6 {[%emt 0:00:28]} 17. c5 {[%emt 0:00:32]} Qf4 {[%emt 0:03:12]} 18. Qd2 {[%emt 0:03:38]} Qc7 {[%emt 0:11:07]} 19. Ne1 {[%emt 0:00:22]} f5 {[%emt 0:00:18]} 20. Nc2 {[%emt 0:02:10]} f4 {[%emt 0:00:39]} 21. f3 {[%emt 0:03:32]} e3 {[%emt 0:01:34]} 22. Qc3 {[%emt 0:00:51]} Rf6 {[%emt 0:02:36]} 23. Rfe1 {[%emt 0:01:31]} Bf5 {[%emt 0:04:50]} 24. Nb4 {[%emt 0:00:29]} Qf7 {[%emt 0:04:35]} 25. Nd3 {[%emt 0:00:23]} Bxd3 {[%emt 0:00:23]} 26. Qxd3 {[%emt 0:00:06]} Qh5 {[%emt 0:01:16]} 27. a3 {[%emt 0:01:18]} Rh6 {[%emt 0:00:29]} 28. h3 {[%emt 0:00:23]} Qg5 {[%emt 0:00:31]} 29. Kf1 {[%emt 0:01:38]} Qg3 {[%emt 0:00:59]} 30. Qe2 {[%emt 0:01:31]} Rf8 {[%emt 0:00:18]} (30... Qh2 $142 {[%cal Rh2h1]} 31. Qc2 Rg6) 31. b4 {[%emt 0:00:43]} Rff6 {[%emt 0:00:13]} 32. Ra2 {[%emt 0:00:26]} Rfg6 {[%emt 0:00:28]} 33. Qa6 {[%emt 0:01:39]} Rf6 {[%emt 0:01:54]} 34. Qc8+ {[%emt 0:00:25]} Rf8 {[%emt 0:00:18]} 35. Qg4 {[%emt 0:00:10]} Qh2 {[%emt 0:02:01]} 36. h4 {[%emt 0:03:26]} Rxh4 {[%emt 0:01:05]} 37. Qe6+ {[%emt 0:03:42]} Kh8 {[%emt 0:00:10]} 38. Qe7 {[%emt 0:00:52]} Rg8 {[%emt 0:01:26]} 39. Rea1 {[%emt 0:00:31]} Qh1+ {[%emt 0:00:45]} 40. Ke2 {[%emt 0:00:00]} Qxg2+ {[%emt 0:00:14]} 41. Kd3 {[%emt 0:01:16]} Qg6+ {[%emt 0:06:28]} 42. Kc3 {[%emt 0:00:09]} Rh3 {[%emt 0:00:28]} 43. Rf1 {[%emt 0:01:29]} Re8 {[%emt 0:05:39]} 44. Qd7 {[%emt 0:00:27]} Qe6 {[%emt 0:03:17]} 45. Qxe6 {[%emt 0:04:35]} Rxe6 {[%emt 0:00:06]} 46. Re2 {[%emt 0:00:32]} g5 {[%emt 0:00:26]} 47. a4 {[%emt 0:00:23]} g4 {[%emt 0:01:25]} 48. fxg4 {[%emt 0:07:53]} f3 {[%emt 0:00:07]} 49. Ree1 {[%emt 0:00:15]} e2 {[%emt 0:00:25]} 50. Rf2 {[%emt 0:00:26]} a6 {[%emt 0:03:59]} 51. b5 {[%emt 0:01:34]} a5 {[%emt 0:02:46]} 52. b6 {[%emt 0:01:54]} Re7 {[%emt 0:00:15]} 53. Kd2 {[%emt 0:00:31]} Kg7 {[%emt 0:00:47]} 54. Rb1 {[%emt 0:00:25]} Rb7 {[%emt 0:01:45]} 55. Rb3 {[%emt 0:00:54]} Rh1 {[%emt 0:00:38]} 56. Re3 {[%emt 0:00:15]} Rd1+ {[%emt 0:00:41]} 57. Kc3 {[%emt 0:00:53]} e1=Q+ {[%emt 0:00:56]} 58. Rxe1 {[%emt 0:00:21]} Rxe1 {[%emt 0:00:08]} 59. Rxf3 {[%emt 0:00:14]} Ra1 {[%emt 0:00:36]} 60. Kb3 {[%emt 0:01:31]} Rb1+ {[%emt 0:00:31]} 61. Kc3 {[%emt 0:00:22]} Rb4 {[%emt 0:00:19]} 62. Re3 {[%emt 0:00:30]} Kf7 {[%emt 0:00:27]} 63. Rh3 {[%emt 0:00:10]} Kg6 {[%emt 0:01:30]} 64. Re3 {[%emt 0:00:10]} Kf6 {[%emt 0:00:27]} 65. Re8 {[%emt 0:00:33]} Re7 {[%emt 0:00:55]} 66. Rc8 {[%emt 0:02:47]} Re3+ {[%emt 0:00:57]} 67. Kd2 {[%emt 0:01:32]} Re6 {[%emt 0:00:10]} 68. Ra8 {[%emt 0:00:23]} Rxd4+ {[%emt 0:00:34]} 69. Kc3 $19 {[%emt 0:00:12]} Rc4+ {[%emt 0:00:22]} 70. Kd3 {[%emt 0:00:34]} Rb4 {[%emt 0:01:11]} 71. Rxa5 {[%emt 0:00:25]} Ree4 {[%emt 0:00:23]} 72. Ra7 {[%emt 0:01:35]} Rxa4 {[%emt 0:02:13]} 73. Rxh7 {[%emt 0:02:10]} Rxg4 {[%emt 0:01:30]} 74. Rc7 {[%emt 0:00:32]} Ra3+ {[%emt 0:01:16]} 75. Kc2 {[%emt 0:00:10]} Rg2+ {[%emt 0:00:24]} 76. Kb1 {[%emt 0:00:08]} Rh3 {[%emt 0:00:22]} 77. Rxc6+ {[%emt 0:00:07]} Ke5 0-1

[Event "XIX Sants Open 2017"]
[Site "Cotxeres de Sants"]
[Date "2017.08.18"]
[Round "1"]
[White "Martinez Torras, Pol"]
[Black "Latorre Coma, Antoni"]
[Result "0-1"]
[ECO "D24"]
[WhiteElo "1647"]
[BlackElo "1423"]
[Annotator "NA RC"]
[PlyCount "160"]
[EventDate "2017.??.??"]
[EventType "swiss"]
[EventCountry "ESP"]
[SourceTitle "playchess.com"]
[Source "ChessBase"]
[SourceQuality "1"]
[TimeControl "40/5400+30:1800+30"]

1. d4 d5 2. Nf3 Nf6 3. c4 dxc4 4. Nc3 e6 5. Bg5 Be7 6. e3 c5 7. Bxc4 cxd4 8. exd4 Nc6 9. O-O O-O 10. a3 Nd5 11. Bxe7 Ncxe7 12. Qb3 b6 13. Bxd5 Nxd5 14. Rac1 Bb7 15. Rfd1 Nf4 16. Ne1 Qg5 17. g3 Ba6 18. h4 Nh3+ 19. Kh2 Qf5 20. Qc2 Nxf2 21. Qxf5 exf5 22. Rd2 Ng4+ 23. Kg1 Rfe8 24. Ng2 Ne3 25. Nxe3 Rxe3 26. Kf2 Rae8 27. Rcd1 h6 28. d5 f4 29. gxf4 Rh3 30. Ne2 Rh2+ 31. Kg1 Rhxe2 32. d6 Rxd2 33. Rxd2 Rd8 34. Kf2 Bc8 35. Ke3 f6 36. Ke4 g6 37. Kd5 Bd7 38. Rc2 Kf7 39. Rc7 a6 40. b4 g5 41. fxg5 f5 42. gxh6 Kg6 43. h7 Kxh7 44. Ke5 Kg6 45. Ra7 Re8+ 46. Kf4 Re4+ 47. Kf3 Bb5 48. a4 Bc6 49. Kf2 Bxa4 50. Rxa6 Bd7 51. Rxb6 Rxh4 52. Rb7 Be8 53. Re7 Bb5 54. Rb7 Rxb4 55. d7 Rf4+ 56. Kg3 Rg4+ 57. Kf2 Bxd7 58. Rxd7 Kg5 59. Rg7+ Kf4 60. Rb7 Ke4 61. Rb4+ Ke5 62. Rb5+ Kf6 63. Rb6+ Kg5 64. Rb8 Re4 65. Rb3 Rf4+ 66. Kg2 Rg4+ 67. Kf2 Ra4 68. Rb2 f4 69. Rc2 Kg4 70. Rb2 Ra3 71. Kg2 Rg3+ 72. Kf2 Rh3 73. Kg1 Kg3 74. Rb3+ f3 75. Rb2 Rh8 76. Rd2 Re8 77. Kf1 Ra8 78. Rd1 Ra2 79. Ke1 Kg2 80. Rd6 f2+ 0-1

[Event "XIX Sants Open 2017"]
[Site "Cotxeres de Sants"]
[Date "2017.08.18"]
[Round "1"]
[White "Berlanda, Giuseppe"]
[Black "Serrano Batova, Vicent"]
[Result "0-1"]
[ECO "B08"]
[WhiteElo "1638"]
[BlackElo "1419"]
[Annotator "NA"]
[PlyCount "89"]
[EventDate "2017.??.??"]
[EventType "swiss"]
[EventCountry "ESP"]
[SourceTitle "playchess.com"]
[Source "ChessBase"]
[SourceQuality "1"]
[TimeControl "40/5400+30:1800+30"]

1. e4 {[%emt 0:00:00]} d6 {[%emt 0:06:57]} 2. d4 {[%emt 0:00:16]} Nf6 {[%emt 0:00:44]} 3. Nc3 {[%emt 0:00:34]} g6 {[%emt 0:00:56]} 4. Nf3 {[%emt 0:01:37]} Bg7 {[%emt 0:00:11]} 5. Bc4 {[%emt 0:01:04]} O-O {[%emt 0:00:40]} 6. O-O {[%emt 0:00:41]} Nbd7 {[%emt 0:00:11]} 7. Bf4 {[%emt 0:00:50]} b6 {[%emt 0:00:08]} 8. Re1 {[%emt 0:02:51]} Bb7 {[%emt 0:01:00]} 9. Qd2 {[%emt 0:02:00]} c5 {[%emt 0:01:51]} 10. Rad1 {[%emt 0:05:55]} cxd4 {[%emt 0:01:56]} 11. Nd5 {[%emt 0:01:57]} e5 {[%emt 0:02:06]} 12. Bg5 {[%emt 0:01:29]} Bxd5 {[%emt 0:04:07]} 13. Bxd5 {[%emt 0:00:12]} Rc8 {[%emt 0:00:29]} 14. Qb4 {[%emt 0:04:38]} Nxd5 {[%emt 0:03:01]} 15. exd5 {[%emt 0:00:43]} f6 {[%emt 0:02:33]} 16. Bc1 {[%emt 0:02:02]} Qc7 {[%emt 0:00:51]} 17. Nd2 {[%emt 0:07:09]} Qc5 {[%emt 0:02:45]} 18. Qa4 {[%emt 0:03:06]} b5 {[%emt 0:00:38]} 19. Qb3 {[%emt 0:00:59]} a6 {[%emt 0:00:33]} 20. Ne4 {[%emt 0:01:47]} Qxc2 {[%emt 0:02:47]} 21. Qa3 {[%emt 0:03:21]} Nb6 {[%emt 0:16:31]} 22. Qxd6 {[%emt 0:05:54]} Qc7 {[%emt 0:00:35]} 23. Qe6+ {[%emt 0:06:33]} Kh8 {[%emt 0:00:09]} 24. Qh3 {[%emt 0:05:04]} Nxd5 {[%emt 0:00:33]} 25. Bd2 {[%emt 0:02:58]} Qe7 {[%emt 0:06:15]} 26. Rc1 {[%emt 0:02:57]} Rxc1 {[%emt 0:07:14]} 27. Rxc1 {[%emt 0:00:35]} Nb6 {[%emt 0:01:44]} 28. a3 {[%emt 0:03:02]} Qd7 {[%emt 0:04:46]} 29. Qf3 {[%emt 0:01:48]} Qf5 {[%emt 0:01:39]} 30. Qe2 {[%emt 0:01:18]} Nc4 {[%emt 0:00:41]} 31. Bb4 {[%emt 0:01:55]} Rd8 {[%emt 0:00:34]} 32. f3 {[%emt 0:07:04]} Qf4 {[%emt 0:01:41]} 33. Rd1 {[%emt 0:06:30]} Qe3+ {[%emt 0:01:35]} 34. Qf2 {[%emt 0:01:36]} Qxf2+ {[%emt 0:00:17]} 35. Kxf2 {[%emt 0:00:04]} Nxb2 {[%emt 0:01:38]} 36. Rd2 {[%emt 0:00:53]} Nc4 {[%emt 0:00:17]} 37. Rd3 {[%emt 0:00:24]} Re8 {[%emt 0:03:05]} 38. f4 {[%emt 0:01:14]} f5 {[%emt 0:02:24]} 39. Ng5 {[%emt 0:02:18]} e4 {[%emt 0:00:59]} 40. Rd1 {[%emt 0:00:00]} d3 {[%emt 0:00:33]} 41. Nf7+ {[%emt 0:01:51]} Kg8 {[%emt 0:00:27]} 42. Ne5 {[%emt 0:00:03]} Bxe5 {[%emt 0:00:26]} 43. fxe5 {[%emt 0:00:16]} e3+ {[%emt 0:00:19]} 44. Kf3 Nxe5+ 45. Kxe3 0-1

[Event "XIX Sants Open 2017"]
[Site "Cotxeres de Sants"]
[Date "2017.08.18"]
[Round "1"]
[White "Arias Aranda, Guillem"]
[Black "Aparicio Escudero, Hector F"]
[Result "0-1"]
[ECO "B00"]
[WhiteElo "1419"]
[BlackElo "1641"]
[Annotator "NA"]
[PlyCount "94"]
[EventDate "2017.??.??"]
[EventType "swiss"]
[EventCountry "ESP"]
[SourceTitle "playchess.com"]
[Source "ChessBase"]
[SourceQuality "1"]
[TimeControl "40/5400+30:1800+30"]

1. e4 {[%emt 0:03:43]} Nc6 {[%emt 0:00:06]} 2. Nf3 {[%emt 0:00:19]} d6 {[%emt 0:00:17]} 3. d4 {[%emt 0:00:45]} Nf6 {[%emt 0:00:42]} 4. d5 {[%emt 0:00:47]} Ne5 {[%emt 0:01:39]} 5. Nxe5 {[%emt 0:00:39]} dxe5 {[%emt 0:00:06]} 6. Nc3 {[%emt 0:00:28]} e6 {[%emt 0:00:48]} 7. Bb5+ {[%emt 0:00:28]} Bd7 {[%emt 0:02:28]} 8. dxe6 {[%emt 0:00:30]} fxe6 {[%emt 0:00:34]} 9. Bxd7+ {[%emt 0:04:20]} Qxd7 {[%emt 0:05:58]} 10. Qxd7+ {[%emt 0:03:45]} Kxd7 {[%emt 0:01:46]} 11. Bd2 {[%emt 0:01:20]} Bc5 {[%emt 0:03:12]} 12. O-O-O {[%emt 0:01:45]} Ke7 {[%emt 0:10:34]} 13. f3 {[%emt 0:01:54]} Rad8 {[%emt 0:04:28]} 14. Bg5 {[%emt 0:02:47]} h6 {[%emt 0:01:16]} 15. Bh4 {[%emt 0:00:02]} Be3+ {[%emt 0:01:34]} 16. Kb1 {[%emt 0:02:03]} Rxd1+ {[%emt 0:01:10]} 17. Rxd1 {[%emt 0:00:32]} Rd8 {[%emt 0:00:41]} 18. Rxd8 {[%emt 0:04:07]} Kxd8 {[%emt 0:00:15]} 19. Ne2 {[%emt 0:00:52]} g5 {[%emt 0:01:25]} 20. Bg3 {[%emt 0:03:43]} Bf4 {[%emt 0:01:57]} 21. h3 {[%emt 0:09:16]} Bxg3 {[%emt 0:01:18]} 22. Nxg3 {[%emt 0:00:02]} h5 {[%emt 0:01:10]} 23. Kc1 {[%emt 0:01:54]} Ke7 {[%emt 0:01:19]} 24. Kd2 {[%emt 0:01:17]} Kf7 {[%emt 0:03:58]} 25. Ke2 {[%emt 0:01:19]} h4 {[%emt 0:00:46]} 26. Nf1 {[%emt 0:00:22]} Nh5 {[%emt 0:00:25]} 27. Ne3 {[%emt 0:01:57]} Nf4+ {[%emt 0:02:33]} 28. Kf2 {[%emt 0:00:35]} Kg7 {[%emt 0:02:51]} 29. Ng4 {[%emt 0:03:42]} Ng6 {[%emt 0:00:24]} 30. Ne3 {[%emt 0:04:11]} Nf4 {[%emt 0:01:06]} 31. Nc4 {[%emt 0:00:29]} Kf6 {[%emt 0:02:41]} 32. Na5 {[%emt 0:00:54]} b6 {[%emt 0:00:44]} 33. Nc6 {[%emt 0:01:10]} a5 {[%emt 0:02:54]} 34. Na7 {[%emt 0:03:25]} Ke7 {[%emt 0:02:11]} 35. Nb5 {[%emt 0:00:22]} c6 {[%emt 0:01:58]} 36. Nc3 {[%emt 0:01:24]} Kd6 {[%emt 0:00:34]} 37. Ne2 {[%emt 0:00:20]} b5 {[%emt 0:02:38]} 38. a3 {[%emt 0:05:18]} b4 {[%emt 0:02:04]} 39. axb4 {[%emt 0:02:30]} axb4 {[%emt 0:00:11]} 40. Nxf4 {[%emt 0:00:00]} exf4 {[%emt 0:00:25]} 41. Ke2 {[%emt 0:00:22]} Kc5 {[%emt 0:04:16]} 42. Kd3 {[%emt 0:02:33]} e5 {[%emt 0:00:47]} 43. b3 {[%emt 0:01:14]} Kb5 {[%emt 0:00:33]} 44. c4+ {[%emt 0:00:31]} Kc5 {[%emt 0:01:04]} 45. Kc2 {[%emt 0:02:42]} Kd4 {[%emt 0:00:10]} 46. c5 {[%emt 0:00:29]} Ke3 {[%emt 0:01:47]} 47. Kd1 {[%emt 0:00:16]} Kd3 0-1

[Event "XIX Sants Open 2017"]
[Site "Cotxeres de Sants"]
[Date "2017.08.19"]
[Round "2"]
[White "Petit Montes, Marc"]
[Black "Abarca Garcia, Xavier"]
[Result "1-0"]
[ECO "A01"]
[WhiteElo "1948"]
[BlackElo "1796"]
[Annotator "NA RC"]
[PlyCount "109"]
[EventDate "2017.??.??"]
[EventType "swiss"]
[EventCountry "ESP"]
[SourceTitle "playchess.com"]
[Source "ChessBase"]
[SourceQuality "1"]
[TimeControl "40/5400+30:1800+30"]

1. b3 {[%emt 0:01:45]} e5 {[%emt 0:00:21]} 2. Bb2 {[%emt 0:00:12]} Nc6 {[%emt 0:00:23]} 3. e3 {[%emt 0:00:21]} Nf6 {[%emt 0:01:41]} 4. Bb5 {[%emt 0:00:20]} Bd6 {[%emt 0:01:26]} 5. Bxc6 {[%emt 0:06:49] A01: Nimzowitsch-Larsen Opening} (5. Na3 a6 6. Be2 Be7 7. Nc4 e4 8. d4 d5 9. Ne5 O-O 10. Nxc6 bxc6 11. c4 a5 12. Qc2 Bb4+ 13. Bc3 {1-0 (34) Vachier Lagrave,M (2796)-Anand,V (2786) Stavanger 2017}) 5... dxc6 {[%emt 0:00:29]} 6. d3 {[%emt 0:00:18]} e4 {[%emt 0:03:35]} 7. d4 $146 {[%emt 0:08:34]} ({Predecessor:} 7. Ne2 Bf5 8. Nbc3 Qe7 9. Ng3 Bxg3 10. hxg3 exd3 11. cxd3 O-O-O 12. d4 h5 {1-0 (63) Savchenko,B (2607)-Lorparizangeneh,S (2456) Dubai 2016}) 7... O-O {[%emt 0:03:16]} 8. Ne2 {[%emt 0:02:19]} Qe7 {[%emt 0:11:02]} 9. c4 {[%emt 0:01:03]} Bb4+ {[%emt 0:05:15]} 10. Nbc3 {[%emt 0:00:46]} Bg4 {[%emt 0:03:27]} 11. h3 {[%emt 0:02:33]} Bxe2 {[%emt 0:03:18]} 12. Qxe2 {[%emt 0:00:36]} Nd7 {[%emt 0:07:38]} 13. a3 {[%emt 0:04:47]} Bxc3+ {[%emt 0:01:20]} 14. Bxc3 {[%emt 0:00:07]} a5 {[%emt 0:07:38]} 15. O-O {[%emt 0:01:59]} f5 {[%emt 0:05:48]} 16. Qd2 {[%emt 0:11:51]} b6 {[%emt 0:05:12]} 17. Rfd1 {[%emt 0:08:08]} Rfd8 {[%emt 0:06:22]} 18. Qb2 {[%emt 0:07:23]} Nf6 {[%emt 0:04:55]} 19. Rac1 {[%emt 0:13:36]} Kf7 {[%emt 0:09:21]} 20. Rc2 {[%emt 0:10:25]} Rd7 {[%emt 0:00:17]} 21. Rcd2 {[%emt 0:04:51]} Rad8 {[%emt 0:00:07]} 22. a4 {[%emt 0:01:20]} Qe6 {[%emt 0:05:02]} 23. Qc2 {[%emt 0:01:33]} Kg8 {[%emt 0:01:11]} 24. Bb2 {[%emt 0:00:36]} Qf7 {[%emt 0:02:14]} 25. Qc3 {[%emt 0:00:29]} h6 {[%emt 0:03:20]} 26. b4 {[%emt 0:00:30]} axb4 {[%emt 0:01:31]} 27. Qxb4 {[%emt 0:00:13]} Qf8 {[%emt 0:02:52]} 28. Qc3 {[%emt 0:01:31]} Qf7 {[%emt 0:00:02]} 29. Qc2 {[%emt 0:03:19]} Qe7 {[%emt 0:00:48]} 30. Bc3 {[%emt 0:01:10]} Qe6 {[%emt 0:01:33]} 31. Bb4 {[%emt 0:02:01]} Kf7 {[%emt 0:01:12]} 32. a5 {[%emt 0:00:27]} Ra8 {[%emt 0:01:44]} 33. Ra1 {[%emt 0:00:49]} c5 {[%emt 0:01:20]} 34. d5 {[%emt 0:02:06]} Qe8 {[%emt 0:00:13]} 35. Bc3 {[%emt 0:00:10]} bxa5 {[%emt 0:01:18]} 36. Rxa5 {[%emt 0:01:01]} Qb8 {[%emt 0:00:38]} 37. Rxc5 {[%emt 0:00:48]} Qb6 {[%emt 0:00:33]} 38. Rb5 {[%emt 0:00:27]} Qa6 {[%emt 0:00:23]} 39. Qb2 {[%emt 0:01:12]} Ne8 {[%emt 0:00:39]} 40. Ra5 {[%emt 0:00:00]} Qc8 {[%emt 0:00:29]} 41. Rxa8 {[%emt 0:11:14]} Qxa8 {[%emt 0:00:24]} 42. Be5 {[%emt 0:00:38]} Qa6 {[%emt 0:04:25]} 43. c5 {[%emt 0:01:58]} Qc4 {[%emt 0:06:36]} 44. Qd4 {[%emt 0:03:42]} Qxd4 {[%emt 0:05:24]} 45. Rxd4 {[%emt 0:00:05]} Nf6 {[%emt 0:05:49]} 46. Bxf6 {[%emt 0:01:56]} Kxf6 {[%emt 0:01:37]} 47. f4 {[%emt 0:00:19]} exf3 {[%emt 0:02:04]} 48. gxf3 {[%emt 0:00:11]} g5 49. f4 {[%emt 0:00:28]} gxf4 {[%emt 0:03:32]} 50. exf4 {[%emt 0:00:07]} Ke7 {[%emt 0:00:43]} 51. Kf2 {[%emt 0:00:13]} Rd8 {[%emt 0:01:47]} 52. Rd3 $18 {[%emt 0:09:48]} Rd7 {[%emt 0:03:33]} 53. Ke3 {[%emt 0:00:49]} Ke8 {[%emt 0:00:40]} 54. Kd4 {[%emt 0:00:12]} Re7 {[%emt 0:00:26]} 55. Re3 {[%emt 0:00:56]} 1-0

[Event "XIX Sants Open 2017"]
[Site "Cotxeres de Sants"]
[Date "2017.08.19"]
[Round "2"]
[White "Marza Vendrell, Conrado"]
[Black "Zvereva, Margarita"]
[Result "1-0"]
[ECO "D02"]
[WhiteElo "1943"]
[BlackElo "1795"]
[Annotator "NA"]
[PlyCount "81"]
[EventDate "2017.??.??"]
[EventType "swiss"]
[EventCountry "ESP"]
[SourceTitle "playchess.com"]
[Source "ChessBase"]
[SourceQuality "1"]
[TimeControl "40/5400+30:1800+30"]

1. d4 d5 2. Nf3 e6 3. c4 Nf6 4. g3 c6 5. Bg2 Bb4+ 6. Bd2 Be7 7. Nc3 O-O 8. e3 b6 9. cxd5 cxd5 10. O-O Ba6 11. Re1 Nc6 12. Qa4 Bb7 13. Rec1 a6 14. Qd1 b5 15. Bf1 b4 16. Na4 Ne4 17. b3 f5 18. Be1 g5 19. Nd2 Nf6 20. Nc5 Bxc5 21. Rxc5 f4 22. Rac1 fxe3 23. fxe3 Qe8 24. Bf2 Rc8 25. Bg2 Qf7 26. Qe2 Ng4 27. Rf1 Nxf2 28. Rxf2 Qg6 29. Rxf8+ Rxf8 30. Rc1 Rc8 31. Nf3 Kg7 32. Qd2 h6 33. Bf1 Qf5 34. Be2 Rf8 35. Rf1 Qg6 36. Bd3 Qh5 37. Qg2 Rc8 38. Bb1 g4 39. Nh4 Ne7 40. Qf2 Kg8 41. Qf6 1-0